Cogmind - Beta 10.2 @@@ ROGUE MODE // 2021.01.10 @ 19:04:18 Player: Pimski Result: Destroyed by P1-3CE with P1-3CE's Gatling Flakker Performance ------------- Evolutions (1) 500 Regions Visited (6) 1200 Robots Destroyed (82) 410 Value Destroyed (1502) 1502 Prototype IDs (30) 600 Alien Tech Used (0) 0 Bonus (-1365) -1365 TOTAL SCORE: 2847 Bonus ------- High Alert Combat Kills 16 Follower Combat Kills 21 Aligned with FarCom 300 Friendly Fire -1702 Cogmind --------- Core Integrity 0/400 Matter 275/300 Energy 280/280 System Corruption 0% Temperature Cool (0) Movement Treading (200) Ox2 Location -8/Mines Parts ------- > --- POWER (1) -------- Heavy Ion Engine > --- PROPULSION (2) --- Light Treads Light Treads > --- UTILITY (4) ------ Large Storage Unit High-capacity Storage Unit High-capacity Storage Unit Advanced Targeting Computer > --- WEAPON (2) ------- AWS/Gauss > --- INVENTORY (26) --- Light Neutrino Core Light Treads Improved Flight Unit Improved Flight Unit Improved Flight Unit Flying Fortress v7 Large Storage Unit Large Storage Unit Gravity Neutralizing Apparatus Gravity Neutralizing Apparatus Advanced Transmission Jammer Light Armor Plating Assault Rifle Light Assault Rifle Light Assault Rifle Light Assault Rifle Heavy Assault Rifle Heavy Assault Rifle Slug Cannon Rocket Launcher Missile Launcher Peak State ------------ > --- POWER ------------ Heavy Ion Engine > --- PROPULSION ------- Light Treads Light Treads > --- UTILITY ---------- Large Storage Unit High-capacity Storage Unit High-capacity Storage Unit Advanced Targeting Computer > --- WEAPON ----------- AWS/Gauss > --- INVENTORY -------- Light Neutrino Core Light Treads Light Treads Light Treads Improved Flight Unit Improved Flight Unit Improved Flight Unit Flying Fortress v7 Large Storage Unit Large Storage Unit Gravity Neutralizing Apparatus Gravity Neutralizing Apparatus Advanced Transmission Jammer Light Armor Plating Assault Rifle Light Assault Rifle Light Assault Rifle Light Assault Rifle Heavy Assault Rifle Heavy Assault Rifle Slug Cannon Rocket Launcher Missile Launcher [Rating: 36] Favorites ----------- Power Heavy Ion Engine Engine Heavy Ion Engine Power Core Light Nuclear Core Propulsion Light Treads Treads Light Treads Leg Aluminum Leg Wheel Wheel Utility Large Storage Unit Device Improved Terrain Scanner Storage Large Storage Unit Processor Advanced Targeting Computer Protection Light Armor Plating Weapon Slug Cannon Energy Gun Small Laser Ballistic Gun Heavy Assault Rifle Ballistic Cannon Slug Cannon Launcher Missile Launcher Build | -11 -10 -10 -9 -9 -9 -8 ------- Run | Scr Mat Min Mat Min Exi Min Slots Evolved 2 | . . . 2 . . . Power . | . . . . . . . Propulsion . | . . . . . . . Utility 2 | . . . 2 . . . Weapon . | . . . . . . . Parts Attached 63 | 2 14 9 14 5 16 3 Power 5 | . 1 1 2 . 1 . Engine 4 | . 1 . 2 . 1 . Core 1 | . . 1 . . . . Reactor . | . . . . . . . Propulsion 14 | . 4 2 3 2 1 2 Treads 13 | . 4 2 3 1 1 2 Leg . | . . . . . . . Wheel 1 | . . . . 1 . . Hover . | . . . . . . . Flight . | . . . . . . . Utility 15 | 1 2 1 2 1 8 . Device 2 | 1 . . . . 1 . Storage 7 | . 2 1 1 . 3 . Processor 2 | . . . . . 2 . Hackware . | . . . . . . . Protection 4 | . . . 1 1 2 . Artifact . | . . . . . . . Weapon 29 | 1 7 5 7 2 6 1 Energy Gun 3 | . 3 . . . . . Energy Cannon . | . . . . . . . Ballistic Gun 15 | 1 3 3 3 1 3 1 Ballistic Cannon 6 | . . 2 2 1 1 . Launcher 5 | . 1 . 2 . 2 . Special Weapon . | . . . . . . . Impact Weapon . | . . . . . . . Slashing Weapon . | . . . . . . . Piercing Weapon . | . . . . . . . Special Melee Weapon . | . . . . . . . Unidentified Prototypes 1 | . . . . . 1 . Parts Lost 13 | . 4 3 1 1 2 2 Power 1 | . . . 1 . . . Propulsion 6 | . 1 2 . . 1 2 Utility 2 | . . . . 1 1 . Weapon 4 | . 3 1 . . . . Highest Loss Streak 2 | . 1 2 1 1 2 2 Average Slot Usage (%) 98 | . 99 99 98 100 97 88 Engine 10 | . 14 4 8 11 11 11 Core 1 | . . 9 1 . . . Treads 24 | . 27 28 22 21 22 22 Storage 30 | . 26 28 32 33 35 33 Processor 1 | . . . . . 4 11 Protection 3 | . . . 11 11 3 . Energy Gun 2 | . 9 . . . . . Ballistic Gun 14 | . 18 22 11 11 8 11 Ballistic Cannon 5 | . . 5 10 10 7 . Naked Turns . | . . . . . . . Heaviest Build 114 | 14 42 62 85 85 114 98 Greatest Support 40 | 20 40 40 40 40 40 40 Greatest Overweight (x) 8 | . 1 1 2 8 2 2 Average Overweight (x) 1 | . . 1 1 2 1 2 Largest Inventory Capacity 32 | 6 16 18 24 24 32 26 Average Capacity 20 | 6 14 17 23 24 27 26 Most Carried 32 | 6 16 18 24 24 32 26 Average Carried 20 | 6 13 17 22 23 25 25 Final Capacity 26 | 6 16 18 24 24 26 26 Final Carried 26 | 6 16 18 24 24 26 24 Class Distribution -------------------- 51% | Hauler-Mutant 41% | Mutant 7% | Scavenger-Mutant Dominant Class ---------------- Mutant | -10/Materials Mutant | -10/Mines Hauler-Mutant | -9/Materials Hauler-Mutant | -9/Mines Hauler-Mutant | -9/Exiles Hauler-Mutant | -8/Mines Resources | -11 -10 -10 -9 -9 -9 -8 ----------- Run | Scr Mat Min Mat Min Exi Min Matter Collected 1939 | 226 370 236 554 124 429 . Remotely . | . . . . . . . Salvage Created 2678 | 93 920 487 773 263 142 . Parts 149 | 4 57 28 51 6 3 . Haulers Intercepted 6 | . 2 . 4 . . . Recyclers Shooed 9 | . 2 5 1 1 . . Parts Field Recycled . | . . . . . . . Retrieved Matter . | . . . . . . . Parts Self-Destructed . | . . . . . . . Prevented . | . . . . . . . Kills | -11 -10 -10 -9 -9 -9 -8 ------- Run | Scr Mat Min Mat Min Exi Min Combat Hostiles Destroyed 55 | . 21 10 19 1 4 . Guns 35 | . 18 10 5 1 1 . Cannons 4 | . . . 4 . . . AOE 16 | . 3 . 10 . 3 . Classes Destroyed 10 | 2 5 1 1 . 1 . Worker 3 | . . . 2 1 . . Builder 4 | . 1 . 3 . . . Tunneler 2 | 1 1 . . . . . Hauler 6 | . 2 . 4 . . . Recycler 9 | 1 1 2 3 2 . . Watcher 5 | . 3 . 2 . . . Swarmer 22 | . 6 3 12 1 . . Grunt 23 | . 15 5 3 . . . Sentry 6 | . . 2 4 . . . Assembled 7 | . . . . . 7 . Best Kill Streak 14 | 2 5 5 14 2 3 . Combat Bots Only 6 | . 5 3 6 1 3 . Max Kills in Single Turn 7 | 1 2 1 7 2 4 . Gunslinging . | . . . . . . . Exploded 3 | . 2 . 3 . 2 . Melee . | . . . . . . . Uniques/NPCs Destroyed 3 | . . . . 1 2 . YI-UF0 (-9/Mines) EX-HEX (-9/Exiles) 8R-AWN (-9/Exiles) Combat | -11 -10 -10 -9 -9 -9 -8 -------- Run | Scr Mat Min Mat Min Exi Min Damage Taken 3200 | . 857 461 702 16 546 618 Core 528 | . 96 26 123 . 128 155 Absorbed by Shields . | . . . . . . . Core Remaining (%) 75 | 100 . 51 . . . . Volleys Fired 177 | 2 77 37 47 11 3 . Largest 2 | 2 2 2 2 2 2 . Hottest 85 | 60 85 43 71 71 69 . Shots Fired 398 | 4 152 73 87 22 49 11 Gun 348 | 4 150 73 49 18 43 11 Cannon 36 | . . . 32 4 . . Launcher 14 | . 2 . 6 . 6 . Special . | . . . . . . . Kinetic 326 | 2 94 73 81 22 43 11 Thermal 56 | . 56 . . . . . Explosive 14 | . 2 . 6 . 6 . Electromagnetic 2 | 2 . . . . . . Robot Hit Streak 54 | 1 25 14 27 7 43 54 Robot Miss Streak 3 | 1 3 2 3 2 2 . Penetration Max . | . . . . . . . Secondary Targets 1 | . 1 . . . . . Max Gunslinging Chain 1 | . 1 . . . . . Autonomous 54 | . . . . . 43 11 Shots Hit Robots 303 | 2 110 63 59 14 44 11 Core Hits 151 | 2 50 27 42 8 20 2 Critical Hits 12 | . 2 2 7 . 1 . Critical Kills 4 | . . . 4 . . . Critical Parts Destroyed 7 | . 2 1 3 . 1 . Melee Attacks . | . . . . . . . Impact . | . . . . . . . Slashing . | . . . . . . . Piercing . | . . . . . . . Sneak Attacks . | . . . . . . . Combat Hostiles . | . . . . . . . Follow-up Attacks . | . . . . . . . Damage Inflicted 6698 | 27 1519 753 2118 331 1713 237 Guns 4317 | 27 1321 739 545 216 1232 237 Cannons 566 | . . . 516 50 . . Explosions 1714 | . 192 . 1041 . 481 . Melee . | . . . . . . . Ramming 101 | . 6 14 16 65 . . Kinetic 4263 | . 728 739 1061 266 1232 237 Thermal 593 | . 593 . . . . . Explosive 1714 | . 192 . 1041 . 481 . Electromagnetic 27 | 27 . . . . . . Impact . | . . . . . . . Slashing . | . . . . . . . Piercing . | . . . . . . . Highest Corruption . | . . . . . . . Average Corruption . | . . . . . . . Corruption Purged . | . . . . . . . Overload Shots . | . . . . . . . Overflow Damage 80 | . 8 . 45 27 . . Projectiles . | . . . . . . . Explosions 53 | . 8 . 45 . . . Melee 27 | . . . . 27 . . Knockbacks 3 | . . . 2 1 . . Impact 1 | . . . . 1 . . Kinetic 2 | . . . 2 . . . Secondary . | . . . . . . . Self-Inflicted Damage 31 | . . . 31 . . . Shots 1 | . . . 1 . . . Rammed 12 | . 1 5 1 5 . . Targets Rammed 12 | . 1 5 1 5 . . Kicked . | . . . . . . . Crushed . | . . . . . . . Highest Temperature 274 | . 274 22 108 24 36 . Average Temperature 47 | . 74 6 29 13 19 . Received Heat Transfer 663 | . 396 144 123 . . . Effects 1 | . 1 . . . . . Energy Bleed 1 | . 1 . . . . . Siege Activations . | . . . . . . . Robots Corrupted . | . . . . . . . Combat Hostiles . | . . . . . . . Parts Fried . | . . . . . . . Impact Corruptions 2 | . . . . 2 . . Robots Melted . | . . . . . . . Combat Hostiles . | . . . . . . . Parts Melted 1 | . 1 . . . . . Heat Transferred 1496 | . 1496 . . . . . Parts Sabotaged . | . . . . . . . Parts Stolen . | . . . . . . . Parts Stripped . | . . . . . . . Power Chain Reactions . | . . . . . . . Missiles Intercepted . | . . . . . . . Alert | -11 -10 -10 -9 -9 -9 -8 ------- Run | Scr Mat Min Mat Min Exi Min Peak Influence 450 | 10 275 145 450 190 . 3 Initial 175 | . 6 25 . 175 . . Average 84 | 9 78 38 210 76 . . Maximum Alert Level 2 | . 1 . 2 . . . Low Security (%) 91 | 100 94 100 53 100 . 100 Level 1 7 | . 5 . 41 . . . Level 2 . | . . . 5 . . . Level 3 . | . . . . . . . Level 4 . | . . . . . . . Level 5 . | . . . . . . . High Security . | . . . . . . . Max Security . | . . . . . . . Squads Dispatched 7 | . 5 1 1 . . . Investigation 4 | . 3 1 . . . . Extermination . | . . . . . . . Reinforcement 3 | . 2 . 1 . . . Assault . | . . . . . . . Garrison . | . . . . . . . Intercept . | . . . . . . . Construction Impeded . | . . . . . . . Haulers Reinforced . | . . . . . . . Stealth | -11 -10 -10 -9 -9 -9 -8 --------- Run | Scr Mat Min Mat Min Exi Min Distress Signals 6 | . 1 1 4 . . . Communications Jammed . | . . . . . . . Distress Signals . | . . . . . . . Times Spotted 80 | . 31 10 30 4 4 1 Peak Tracking Total 10 | . 5 3 10 4 5 1 Tactical Retreats 2 | . 1 . 1 . . . Traps | -11 -10 -10 -9 -9 -9 -8 ------- Run | Scr Mat Min Mat Min Exi Min Traps Triggered 2 | . 2 . . . . . Indirectly . | . . . . . . . Trap Hack Attempts . | . . . . . . . Triggered . | . . . . . . . Disarmed . | . . . . . . . Reprogrammed . | . . . . . . . Reused . | . . . . . . . Traps Extracted . | . . . . . . . Installed . | . . . . . . . Triggered . | . . . . . . . Machines | -11 -10 -10 -9 -9 -9 -8 ---------- Run | Scr Mat Min Mat Min Exi Min Machines Disabled 6 | . . . 2 . 4 . Max in Single Turn 2 | . . . 1 . 2 . Machines Sabotaged . | . . . . . . . Garrisons Compromised . | . . . . . . . Overloaded Fab Kills . | . . . . . . . Fab Network Shutdowns . | . . . . . . . Hacking | -11 -10 -10 -9 -9 -9 -8 --------- Run | Scr Mat Min Mat Min Exi Min Machines Accessed 17 | . 9 2 4 . 2 . Terminals 9 | . 6 1 2 . . . Fabricators . | . . . . . . . Repair Stations 2 | . 1 . 1 . . . Recycling Units 2 | . 2 . . . . . Scanalyzers 1 | . . . 1 . . . Garrison Access . | . . . . . . . Total Hacks 50 | . 27 5 16 . 2 . Successful 32 | . 15 2 13 . 2 . Failed 18 | . 12 3 3 . . . Catastrophic . | . . . . . . . Database Lockouts . | . . . . . . . Manual 18 | . 11 4 2 . 1 . Terminals 32 | . 21 4 7 . . . Fabricators . | . . . . . . . Repair Stations 6 | . 4 . 2 . . . Recycling Units 2 | . 2 . . . . . Scanalyzers 7 | . . . 7 . . . Garrison Access . | . . . . . . . Terminal Hacks 18 | . 10 2 4 . 2 . Record 1 | . . . . . 1 . Robot Analysis 3 | . 3 . . . . . Prototype ID Bank 5 | . 3 1 1 . . . Open Door 1 | . . 1 . . . . Unreport Threat 1 | . 1 . . . . . Locate Traps 5 | . 3 . 2 . . . Hauler Manifests 1 | . . . 1 . . . EX-Prototype ID Bank 1 | . . . . . 1 . Fabricator Hacks . | . . . . . . . Repair Station Hacks 4 | . 2 . 2 . . . Scan Component 2 | . 1 . 1 . . . Repair 2 | . 1 . 1 . . . Recycling Unit Hacks . | . . . . . . . Scanalyzer 6 | . . . 6 . . . Insert Component 3 | . . . 3 . . . Analyze 3 | . . . 3 . . . Garrison Access Hacks . | . . . . . . . Unauthorized Hacks 4 | . 3 . 1 . . . Terminals 2 | . 1 . 1 . . . Botnet 2 | . 1 . 1 . . . Fabricators . | . . . . . . . Repair Stations . | . . . . . . . Recycling Units 2 | . 2 . . . . . Tunnel 2 | . 2 . . . . . Scanalyzers . | . . . . . . . Garrison Access . | . . . . . . . Data Cores Recovered . | . . . . . . . Used . | . . . . . . . Hacking Detections 12 | . 7 1 4 . . . Full Trace Events . | . . . . . . . Feedback Events . | . . . . . . . Feedback Blocked . | . . . . . . . Robot Schematics Acquired . | . . . . . . . Robots Built . | . . . . . . . Matter . | . . . . . . . Time . | . . . . . . . Total Robot Build Rating . | . . . . . . . Part Schematics Acquired 3 | . . . 3 . . . Parts Built . | . . . . . . . Matter . | . . . . . . . Time . | . . . . . . . Total Part Build Rating . | . . . . . . . Parts Repaired 2 | . 1 . 1 . . . Time 39 | . 13 . 26 . . . Parts Recycled . | . . . . . . . Recycled Matter . | . . . . . . . Retrieved Matter . | . . . . . . . Retrieved Components . | . . . . . . . Parts Scanalyzed 3 | . . . 3 . . . Part Schematics Acquired 3 | . . . 3 . . . Parts Damaged . | . . . . . . . Bothacking | -11 -10 -10 -9 -9 -9 -8 ------------ Run | Scr Mat Min Mat Min Exi Min Used RIF Installer . | . . . . . . . Robots Hacked . | . . . . . . . Non-combat . | . . . . . . . Combat . | . . . . . . . Robot Hacks Applied . | . . . . . . . Relay Couplers Released . | . . . . . . . Robots Rewired . | . . . . . . . Allies Hacked . | . . . . . . . Hacks Repelled . | . . . . . . . Allies | -11 -10 -10 -9 -9 -9 -8 -------- Run | Scr Mat Min Mat Min Exi Min Total Allies 3 | . . . . 3 . . Largest Group 3 | . . . . 3 2 . Highest-Rated Group 40 | . . . . 40 30 . Highest-Rated Ally 16 | . . . . 16 16 . Total Orders 2 | . . . . . 2 . STAY 2 | . . . . . 2 . Ally Attacks 10 | . . . . 7 3 . Total Damage 92 | . . . . 46 46 . Kills 4 | . . . . 3 1 . Allies Corrupted . | . . . . . . . Allies Melted . | . . . . . . . Intel | -11 -10 -10 -9 -9 -9 -8 ------- Run | Scr Mat Min Mat Min Exi Min Robot Analysis Total 3 | . 3 . . . . . Derelict Logs Recovered 4 | . . 2 . 2 . . Drone Launches . | . . . . . . . Drone Recoveries . | . . . . . . . Exploration | -11 -10 -10 -9 -9 -9 -8 ------------- Run | Scr Mat Min Mat Min Exi Min Turns Passed 6897 | 31 2042 1223 752 1183 1512 154 Spaces Moved 3096 | 19 967 579 268 504 705 54 Core . | . . . . . . . Treads 3038 | . 963 579 268 469 705 54 Legs 23 | 19 4 . . . . . Wheels 35 | . . . . 35 . . Hover . | . . . . . . . Flight . | . . . . . . . Fastest Speed 120 | 120 120 180 180 160 180 200 Average Speed 185 | 120 171 180 197 197 199 200 Slowest Speed 200 | 120 180 180 200 200 200 200 Overloaded Moves . | . . . . . . . Propulsion Burnouts . | . . . . . . . Robots Hopped . | . . . . . . . Cave-ins Triggered . | . . . . . . . Exploration Rate (%) 58 | 3 98 99 28 99 67 12 Regions Visited 6 Branch Regions 4 Pre-discovered Areas 5 | . 2 1 . 1 1 . Known Exits Taken . | . . . . . . . Unknown Exits Taken 6 | 1 1 1 1 1 1 . Scrap Searched 4 | . . 1 . 3 . . Spaces Dug 5 | . . . 5 . . . Terrain Destroyed 159 | . 16 . 56 1 76 10 Melee . | . . . . . . . Projectile 53 | . . . 9 1 33 10 AOE 106 | . 16 . 47 . 43 . Terrain Rammed . | . . . . . . . Walls Destroyed . | . . . . . . . Machines Disabled . | . . . . . . . Actions | -11 -10 -10 -9 -9 -9 -8 --------- Run | Scr Mat Min Mat Min Exi Min Total 3923 | 22 1212 693 401 665 828 102 Wait 418 | . 118 44 51 140 24 41 Move 3090 | 18 966 578 267 503 704 54 Hop . | . . . . . . . Pick Up 88 | . 23 11 14 1 37 2 Fast Attach 12 | 1 3 2 3 . 3 . Attach 27 | . 6 4 3 1 10 3 Detach 4 | . . . . . 4 . Swap 24 | 1 5 3 8 4 3 . Drop 71 | . 13 9 7 . 40 2 Fire 177 | 2 77 37 47 11 3 . Melee . | . . . . . . . Ram . | . . . . . . . Kick . | . . . . . . . Crush 12 | . 1 5 1 5 . . Escape Stasis . | . . . . . . . Rewire . | . . . . . . . Trap . | . . . . . . . Miscellaneous . | . . . . . . . Route ------- -11/Scrapyard -10/Materials (discovered 4 exits: *Mat x3 / *Min) -10/Mines (discovered 2 exits: *Mat x2) -9/Materials (discovered 3 exits: Mat x2 / [*Min]) -9/Mines (discovered 3 exits: *Mat x2 / *Exi) -9/Exiles -8/Mines History --------- Turn | Location | Event 8 | -11/Scrapyard | Discovered new exit (range 2) 32 | -11/Scrapyard | Entered Materials 167 | -10/Materials | Discovered new exit (range 16) 317 | -10/Materials | Build established: Mutant 515 | -10/Materials | Discovered new exit (range 4) 758 | -10/Materials | Discovered new exit (range 16) 762 | -10/Materials | Discovered new exit (range 15) 1326 | -10/Materials | Build established: Scavenger-Mutant 1476 | -10/Materials | Repaired Lgt. Treads 1849 | -10/Materials | Build established: Mutant 2074 | -10/Materials | Entered Mines 2089 | -10/Mines | Learned location of Zion (-7) 2092 | -10/Mines | Discovered new exit (range 11) 2254 | -10/Mines | Met a Derelict shopkeep closing up shop 2353 | -10/Mines | Learned 4 Materials zone layouts 2498 | -10/Mines | Discovered new exit (range 9) 2780 | -10/Mines | A weapon hastily lodged in a ceiling crevice suddenly fell to the ground 3297 | -10/Mines | Entered Materials 3297 | -9/Materials | Evolved 2 slots: Utility x2 3298 | -9/Materials | Identified exit to Materials 3555 | -9/Materials | Discovered new exit (range 16) 3639 | -9/Materials | Build established: Hauler-Mutant 3697 | -9/Materials | Repaired Lgt. Treads 4049 | -9/Materials | Entered Mines 4071 | -9/Mines | Learned Materials emergency access door positions 4139 | -9/Mines | YI-UF0 nonchalantly dropped a Grenade Launcher on the ground 4146 | -9/Mines | Destroyed YI-UF0 4273 | -9/Mines | A Derelict revealed a hidden shortcut to a safe place 4560 | -9/Mines | Assisted by bots powering up and referring to "LRC-V3" 4746 | -9/Mines | Deemed a non-threat by the Exiles lab entrance 4746 | -9/Mines | Discovered new exit (range 5) 4820 | -9/Mines | Discovered exit to Materials (range 5) 5000 | -9/Mines | Discovered exit to Materials (range 9) 5232 | -9/Mines | Entered Exiles 5232 | -9/Exiles | Accompanied by 2 allies 5260 | -9/Exiles | Discovered new exit (range 15) 5338 | -9/Exiles | Met 8R-AWN 5366 | -9/Exiles | Met EX-HEX 5499 | -9/Exiles | Met EX-DEC 5830 | -9/Exiles | Met EX-BIN 5852 | -9/Exiles | Aligned with FarCom system 5854 | -9/Exiles | Given EX-Vault access code 5900 | -9/Exiles | Opened EX-Vault 5916 | -9/Exiles | Found Flying Fortress v7 5926 | -9/Exiles | Found AWS/Gauss 5968 | -9/Exiles | Warned to stay clear of 0b10 Research branches 6371 | -9/Exiles | Attacked by the Exiles 6376 | -9/Exiles | Allies destroyed EX-HEX 6402 | -9/Exiles | Core integrity fell below 50% 6425 | -9/Exiles | Destroyed 8R-AWN 6744 | -9/Exiles | Stole two prototypes: Flying Fortress v7, AWS/Gauss 6744 | -9/Exiles | Entered Mines 6884 | -8/Mines | P1-3CE came to Exiles' defense 6894 | -8/Mines | Core integrity fell below 20% 6898 | -8/Mines | Destroyed by P1-3CE with P1-3CE's Gatling Flakker Last Messages --------------- 06670_ Acquired 35 matter. A strange signal echoes through the mines. LOCATION=UNKNOWN GOAL=ESCAPE 06750_ Dropped Hvy. Assault Rifle. 06751_ Dropped Slug Cannon. 06753_ Acquired Hvy. Assault Rifle. 06755_ Acquired Slug Cannon. 06884_ P1-3CE: "I came as fast as I could... Wait, it was you!" 06886_ Destroyed EM Shield. 06887_ Slug penetrates P1-3CE. 06887_ Slug penetrates Wall. 06893_ Slug penetrates P1-3CE. 06893_ Slug penetrates Wall. 06893_ Lgt. Treads destroyed. 06894_ Slug penetrates P1-3CE. 06896_ Slug penetrates Wall. 06896_ Lgt. Treads destroyed. 06897_ Slug penetrates P1-3CE. 06897_ Slug penetrates Wall. Map ----- +----------------------------------------------------+ | | | | | | | | | | | | | | | | | ???????????????????????????????????? | | ???????????????????????????????????? | | ???????????????????????????????????? | | ????????????????????????????###????? | | ???????????????#####???????# ##???? | | ??????????????## ####??## #???? | | ??????????????# #### #???? | | ??????????????# #???? | | ??????????????## ##??? | | ???????????????##### #??? | | ???????????????????## #??? | | ????????????????????# ##??? | | ????????????????????## ##???? | | ?????????????????????#### ##???? | | ????????????????????????;; #???? | | ????????????????????????#; #???? | | ??????????????????????### ##???? | | ?????????????????????## @ ##????? | | ?????????????????????# ##?????? | | ?????????????????????# #??????? | | ?????????????????????## ;#?????? | | ??????????????????????## ##????? | | ???????????????????????### ##???? | | ?????????????????????????#; #???? | | ??????????????????????????#; #???? | | ???????????????????????????#; #???? | | ???????????????????????????#; #???? | | ????????????????????????????#M #???? | | ????????????????????????????# #???? | | ????????????????????????##### #???? | | ???????????????????????## ;???? | | ???????????????????????# #???? | | ????????????????? ###""#???? | | ?????????????????### ???? #????? | | ???????????????????# ?????#?????? | | ???????????????????## ????????????? | | ????????????????????##?????????????? | | ???????????????????????????????????? | | ???????????????????????????????????? | | ???????????????????????????????????? | | ???????????????????????????????????? | | ???????????????????????????????????? | +----------------------------------------------------+ Best States ------------- Heat Dissipation 28 Energy Generation 14 Energy Capacity 280 Matter Stores 300 Matter Capacity 300 Sight Range 16 Terrain Scan Range 16 Terrain Scan Density 10 Armor Coverage 150 Evasion (%) 40 Targeting Accuracy 8 Recoil Reduction 2 Item Schematics ----------------- Imp. Flight Unit | -9/Materials | Scanalyzed Adv. Signal Interpreter | -9/Materials | Scanalyzed Adv. Targeting Computer | -9/Materials | Scanalyzed Robot Schematics ------------------ None Fabricated ------------ Nothing Alien Tech Used ----------------- None Achievements -------------- None Challenges ------------ None Game ------ Seed SlugSpreadDoomcannon Manual? 0 Play Time 00:43:03 Cumulative 777.8 hours Start 2021.01.10 @ 17:53:41 End 2021.01.10 @ 19:04:18 Sessions 3 Manual Loads 0 Difficulty Rogue Special Mode None Game No. 504 Rogue 504 Adventurer 0 Explorer 0 Win Type - Total 113 Types 77/7/8/10/5/1/4/0/1 Lore% 96 Gallery% 94 Achievement% 82 Wizard Run 0 Options --------- ASCII 0 Keyboard 0 Movement Numpad Keybinds 0 Fullscreen 2 Font 18/SmallcapsGlow Map View 76x50 Tactical HUD 1 Map Filters NONE Filters NONE Steam 1 RUN: 4bc2c0a5-5db5-410d-ab34-c25cdd3afa03